[Event "Charlotte Summer IM D 2022"]
[Site "Charlotte"]
[Date "2022.07.25"]
[Round "1.5"]
[White "Levine, Joseph"]
[Black "Vigorito, David"]
[Result "1/2-1/2"]
[ECO "B90"]
[WhiteElo "2294"]
[BlackElo "2295"]
[Annotator "TA"]
[PlyCount "111"]
[EventDate "2022.07.24"]
[EventType "tourn"]
[EventCountry "USA"]
[SourceTitle "playchess.com"]
[Source "ChessBase"]
[SourceQuality "1"]
[TimeControl "5400+30"]

{[%evp 15,111,0,0,3,3,10,0,0,7,-4,-22,-14,-21,-21,0,0,42,45,45,45,45,21,37,32,11,0,0,0,0,-6,-27,-35,-17,-35,-28,-44,-58,-47,-26,-80,-49,-85,-68,-78,-37,-228,0,0,101,27,58,-6,-2,-9,-4,-114,-33,-419,0,0,0,0,0,0,0,-6,0,-127,-127,-127,-74,-67,-67,-68,-68,-75,-67,-89,-89,-89,-89,-89,-89,-89,-89,-89,-89,-89,-89,-89,-89,-89,-89,-89,-89,-89,-89,-89]} 1. e4 {[%emt 0:00:04]} c5 {[%emt 0:00:13]} 2. Nf3 {[%emt 0:00:06]} d6 {[%emt 0:00:11]} 3. d4 {[%emt 0:00:06]} cxd4 {[%emt 0:00:06]} 4. Nxd4 {[%emt 0:00:07]} Nf6 {[%emt 0:00:08]} 5. Nc3 {[%emt 0:00:05]} a6 {[%emt 0:01:01]} 6. Bd3 {[%emt 0:00:13]} e5 {[%emt 0:01:16]} 7. Nde2 {[%emt 0:00:04]} Be7 {[%emt 0:00:34]} 8. O-O {[%emt 0:00:05]} O-O {[%emt 0:00:40]} 9. Ng3 {[%emt 0:00:14] B90: Sicilian Najdorf: Unusual White 6th moves, 6 Be3 Ng4 and 6 Be3 e5.} Be6 {[%emt 0:01:19]} 10. Nd5 {[%emt 0:00:10]} Bxd5 {[%emt 0:00:59]} 11. exd5 {[%emt 0:00:02] The position is equal.} g6 {[%emt 0:00:38]} 12. f4 {[%emt 0:00:22]} exf4 {[%emt 0:06:48]} 13. Bxf4 {[%emt 0:00:16]} Nbd7 {[%emt 0:00:41]} 14. c4 {[%emt 0:01:06] [#]} Re8 $146 {[%emt 0:21:46]} ({Predecessor:} 14... Ne5 15. Bxe5 dxe5 16. Kh1 Nd7 17. Qg4 Kh8 18. Nf5 Nf6 19. Qh3 Bc5 20. b4 Bxb4 {0-1 (32) Pacher,M (2406)-Souhardo,B (2382) Budapest 2021}) 15. Kh1 {[%emt 0:09:02]} Ne5 {[%emt 1:01:40]} 16. Bxe5 {[%emt 0:17:22]} dxe5 {[%emt 0:00:00]} 17. Qf3 {[%emt 0:00:03]} Rf8 {[%emt 0:00:00]} 18. Rad1 {[%emt 0:18:17][%cal Od5d6]} Ne8 {[%emt 0:00:00]} 19. Qe3 {[%emt 0:23:34]} Qc7 $1 {[%emt 0:00:00]} 20. Rde1 {[%emt 0:00:12]} (20. Qh6 {is more complex.} Bc5 21. a3 a5 22. Ne4) 20... f6 {[%emt 0:00:00]} 21. Qh6 {[%emt 0:03:14][%cal Od3g6] And now Bxg6! would win.} Rf7 {[%emt 0:00:00][%cal Ob7b5]} 22. Rc1 {[%emt 0:01:20][%cal Oc4c5]} b6 {[%emt 0:00:00]} 23. a3 {[%emt 0:02:10]} a5 {[%emt 0:00:00]} 24. c5 {[%emt 0:06:38]} bxc5 {[%emt 0:00:00]} 25. b4 {[%emt 0:00:29]} axb4 {[%emt 0:00:00]} 26. axb4 {[%emt 0:00:18]} c4 {[%emt 0:00:00] Black wants to play ...Qb7.} 27. Rxc4 {[%emt 0:04:09]} (27. Ne4 $11) 27... Qb7 {[%emt 0:00:00]} 28. Rg4 {[%emt 0:07:41][%cal Od5d6]} Bf8 $1 {[%emt 0:00:00]} (28... Bxb4 29. Rb1 Bf8 30. Rxg6+ Kh8 31. Qh4 $11 (31. Rxb7 Bxh6 32. Rxf7 hxg6 $17)) (28... Qxd5 $2 29. Bc4 Nc7 30. Bxd5 $18) 29. Qe3 {[%emt 0:03:04]} Nd6 {[%emt 0:00:00]} (29... Bxb4 $2 30. Rb1 $18) ({Don't take} 29... Qxd5 30. Be4 (30. Bc4 Qd7 $16) 30... Qe6 31. Bxa8 $16) 30. h4 $2 {[%emt 0:00:55]} (30. Nf5 $1 $15) 30... Qxd5 $2 {[%emt 0:00:00]} (30... Qd7 $1 $19 {[%cal Rd7g4]} 31. Nf5 Ra3 32. Nxd6 Bxd6 33. Bxg6 Rxe3 34. Bf5+ Kh8 35. Bxd7 Rxd7 36. Rxf6 Rd3) 31. h5 $11 {[%emt 0:01:01]} g5 {[%emt 0:00:00]} (31... Ra2 $2 32. Ne4 Qe6 33. Qf3 $16) (31... Qe6 $11 32. hxg6 Qxg4 33. gxf7+ Kg7) 32. Ne4 {[%emt 0:00:50]} (32. Bc2 $16 {Threatens to win with Bb3.} Ra2 33. Qb3 Qxb3 34. Bxb3) 32... Qe6 {[%emt 0:05:47]} 33. Qh3 {[%emt 0:02:29]} ({Wrong is} 33. Nxf6+ $2 Rxf6 34. Qxg5+ Kf7 35. Qg8+ (35. Rxf6+ $2 Qxf6 36. Qxf6+ Kxf6 $19) 35... Ke7 36. Qxh7+ Rf7 37. Rxf7+ Qxf7 $19) (33. Rg3 $14 Nxe4 34. Qxe4) 33... Kh8 $1 {[%emt 0:00:27] Hoping for ...Ra3.} 34. Nxd6 {[%emt 0:00:28]} Qxd6 {[%emt 0:00:19]} ({Much less strong is} 34... Bxd6 35. Bc4 Qe8 36. Bxf7 Qxf7 37. Rxg5 $16) 35. Rxg5 {[%emt 0:00:16]} (35. Be2 $11 {remains equal.}) 35... Bh6 {[%emt 0:01:09]} (35... Ra3 $17 36. Qg3 Bg7) 36. Qf3 {[%emt 0:01:20][%mdl 8192]} (36. Rg3 $15) 36... Bxg5 $2 {[%emt 0:00:39]} ({Better is} 36... Ra3 $19 37. Rg3 e4) 37. Qxa8+ {[%emt 0:00:01]} Kg7 $1 {[%emt 0:00:15]} 38. Qe4 {[%emt 0:00:10]} Kh6 {[%emt 0:00:20]} 39. b5 {[%emt 0:01:12]} Rd7 {[%emt 0:00:24]} 40. Bc2 {[%emt 0:00:33]} Qc7 {[%emt 0:00:57]} 41. Rb1 {[%emt 0:00:29] [#]} (41. Qb4 $11) 41... Rd4 $1 $17 {[%emt 0:00:57]} 42. b6 {[%emt 0:00:23] [#]} Rxe4 {[%emt 0:00:13]} (42... Qf7 $142 $1 43. Qxh7+ Qxh7 44. Bxh7 Rh4+ 45. Kg1 Be3+ 46. Kf1 Kxh7) 43. bxc7 {[%emt 0:00:12][%mdl 4096] Endgame KRB-KRB} Rc4 {[%emt 0:00:04]} 44. Be4 {[%emt 0:01:04] Black must now prevent Rb7.} Rxc7 {[%emt 0:00:10]} 45. g4 {[%emt 0:00:21]} Be3 {[%emt 0:00:34]} 46. Rb7 {[%emt 0:00:34]} Rxb7 {[%emt 0:00:09] Black is better.} 47. Bxb7 {[%emt 0:00:02] KB-KB} Kg5 {[%emt 0:00:06]} 48. Bf3 {[%emt 0:00:06]} Kf4 {[%emt 0:00:06]} 49. Kg2 {[%emt 0:00:07]} e4 {[%emt 0:00:05]} 50. Be2 {[%emt 0:00:11]} h6 {[%emt 0:00:04]} 51. Bd1 {[%emt 0:00:14]} Bd4 {[%emt 0:00:17]} 52. Kf1 {[%emt 0:00:23]} Ke3 {[%emt 0:00:08]} 53. Be2 {[%emt 0:00:13]} Kd2 {[%emt 0:01:57]} 54. Bb5 {[%emt 0:00:07]} Bc5 {[%emt 0:00:59]} 55. Be2 {[%emt 0:00:07]} Ke3 {[%emt 0:01:15]} 56. Bd1 {[%emt 0:00:08] Weighted Error Value: White=0.39/Black=0.25 (precise)} 1/2-1/2

[Event "Charlotte Summer IM D 2022"]
[Site "Charlotte"]
[Date "2022.07.25"]
[Round "2.1"]
[White "Bacus, Dharim"]
[Black "Vigorito, David"]
[Result "1-0"]
[ECO "B67"]
[WhiteElo "2227"]
[BlackElo "2295"]
[Annotator "TA"]
[PlyCount "175"]
[EventDate "2022.07.24"]
[EventType "tourn"]
[EventCountry "USA"]
[SourceTitle "playchess.com"]
[Source "ChessBase"]
[SourceQuality "1"]
[TimeControl "5400+30"]

{[%evp 26,175,0,0,1,0,0,-2,0,-19,-12,-17,-11,-15,-5,-17,-17,-43,-14,-27,-17,-27,-33,-20,0,-4,0,6,7,6,31,20,37,-7,13,0,29,8,11,5,278,256,424,428,478,235,242,240,224,223,214,177,186,186,177,191,183,164,193,193,828,81,108,103,195,200,183,195,211,211,211,208,205,202,331,218,650,650,692,531,857,817,764,211,211,183,183,183,183,183,183,183,211,211,211,211,211,211,12828,12489,6204,220,233,220,29956,29957,29946,29954,29965,29967,29958,29958,29960,29961,29964,29963,29961,305,29975,29976,29976,29977,29977,29978,29979,29979,29982,29981,29981,29982,29982,29983,29983,29980,29984,29985,29986,29985,29985,29985,29986,225,29987,29988,29988,29989,29989,29990,29990,29991,29997,29998]} 1. e4 {[%emt 0:00:06]} c5 {[%emt 0:00:42]} 2. Nf3 {[%emt 0:00:30]} d6 3. d4 {[%emt 0:00:30]} cxd4 {[%emt 0:01:00]} 4. Nxd4 {[%emt 0:00:00]} Nf6 {[%emt 0:00:00]} 5. Nc3 {[%emt 0:00:00]} a6 {[%emt 0:00:00]} 6. Bg5 {[%emt 0:00:07]} e6 {[%emt 0:00:01]} 7. f4 {[%emt 0:00:30]} Be7 {[%emt 0:00:30]} 8. Qd2 {[%emt 0:00:48]} h6 {[%emt 0:04:17]} 9. Bxf6 {[%emt 0:06:07]} Bxf6 {[%emt 0:00:18]} 10. O-O-O {[%emt 0:00:05]} Bd7 {[%emt 0:04:45]} 11. Kb1 {[%emt 0:04:49]} Nc6 {[%emt 0:01:00]} 12. Nf3 {[%emt 0:01:03]} Be7 {[%emt 0:02:05]} 13. g4 {[%emt 0:09:41]} Qc7 14. h4 {[%emt 0:10:11]} O-O-O {B67: Sicilian: Richter-Rauzer: 7...a6 8 0-0-0 Bd7, lines without 9 f4 Be7.} 15. Bh3 {[%emt 0:10:48]} Kb8 16. g5 {[%emt 0:11:14] [#]} Bc8 $146 {The position is equal.} ({Predecessor:} 16... hxg5 17. hxg5 g6 18. Bg2 Bc8 19. Qe3 Rxh1 20. Rxh1 d5 21. exd5 exd5 22. Nd4 Nxd4 23. Qxd4 {½-½ (33) Felgaer,R (2591)-Fier,A (2490) Sao Paulo 2006}) 17. Qg2 {[%emt 0:01:17]} hxg5 18. hxg5 {[%emt 0:06:37]} g6 19. Rhe1 {[%emt 0:13:00]} f5 {[%emt 0:46:37]} 20. exf5 {[%emt 0:00:30]} gxf5 {[%emt 0:39:15]} 21. Qg3 {[%emt 0:08:32]} d5 22. Bg2 {[%emt 0:15:05]} Bb4 {[%emt 0:01:00]} 23. Nd4 {[%emt 0:00:00]} Nxd4 {[%emt 0:00:00]} 24. Rxd4 {[%emt 0:00:00]} Bc5 {[%emt 0:00:00]} 25. Rd3 {[%emt 0:00:00]} Bd6 {[%emt 0:00:00]} 26. Ne2 {[%emt 0:00:00]} Rhe8 {[%emt 0:00:00]} 27. Rf1 {[%emt 0:00:00]} Qg7 {[%emt 0:00:00]} 28. Rfd1 {[%emt 0:00:00]} Qc7 {[%emt 0:00:00]} 29. Re3 {[%emt 0:00:00]} Bd7 {[%emt 0:00:00]} (29... e5 $5 {[%cal Re5f4]} 30. Rc3 (30. Rxd5 $2 exf4 31. Nxf4 Bxf4 $19) 30... exf4 $11) 30. Rc3 {[%emt 0:00:00]} Qa5 {[%emt 0:00:00]} 31. Nd4 {[%emt 0:00:44]} Rc8 {[%emt 0:00:00]} 32. Rxc8+ {[%emt 0:01:02]} Kxc8 $4 {[%emt 0:00:00][%mdl 8192]} (32... Rxc8 $11 {and Black stays safe.} 33. c3 Qc7) 33. g6 $18 {[%emt 0:00:09]} Qc7 $2 {[%emt 0:00:00]} (33... e5 34. g7 exd4) 34. g7 $1 {[%emt 0:00:45]} Rg8 {[%emt 0:00:00]} 35. Nxf5 {[%emt 0:00:48]} exf5 {[%emt 0:00:00]} 36. Bxd5 {[%emt 0:00:06]} Ba4 {[%emt 0:00:00]} (36... Bxf4 $2 37. Qh4 Re8 38. g8=Q Rxg8 39. Bxg8 $18) 37. Rg1 $1 {[%emt 0:00:39] Active counter play!} Bxf4 {[%emt 0:04:00]} 38. Bxg8 {[%emt 0:00:29] Be6+ would kill now. Dancing on a razor blade.} Qxc2+ {[%emt 0:01:14]} (38... Bxg3 $2 39. Be6+ Kb8 40. g8=Q+ Ka7 41. Qxg3 $18) (38... Bxc2+ $2 39. Ka1 Bxg3 40. Be6+ Kb8 41. g8=Q+ Ka7 42. Qxg3 $18) 39. Ka1 {[%emt 0:00:05]} Bxg3 {[%emt 0:00:48]} 40. Be6+ {[%emt 0:00:07]} Kc7 {[%emt 0:00:13]} 41. g8=Q {[%emt 0:00:16]} Be5 {[%emt 0:01:00][%csl Gc2][%cal Re5b2] [#]} 42. Qc8+ $1 {[%emt 0:00:24]} (42. Rb1 Bxb2+ 43. Rxb2 Qc1+ 44. Rb1 Qc3+ 45. Rb2 Qc1+ 46. Rb1 Qc3+ 47. Rb2 Qc1+ $11) 42... Kd6 $2 {[%emt 0:02:45]} (42... Kb6 43. Qxc2 Bxc2) 43. Qxc2 $2 {[%emt 0:01:43]} (43. Qd8+ $18 Kc5 44. Qd5+ Kb6 45. Qxe5) 43... Bxc2 {[%emt 0:00:00][%mdl 4096] Endgame KRB-KB. A strong pair of Bishops.} 44. Rg6 {[%emt 0:00:15]} Ke7 {[%emt 0:00:00]} (44... Kc7 $16) 45. Bc8 {Threatens to win with Re6+.} ({Much less strong is} 45. Bd5 Bb8 46. Re6+ (46. Bxb7 a5 $16) 46... Kd7) 45... Bf6 {[%emt 0:01:30]} 46. Bxb7 {[%emt 0:00:46]} a5 {[%emt 0:00:00] [#]} 47. Rg2 $1 Bd3 {[%emt 0:01:00] Prevents Re2+.} 48. Rd2 {[%emt 0:04:42]} Bc4 {[%emt 0:00:00]} 49. Rc2 Be6 {[%emt 0:01:00]} (49... Bd3 $142 50. Rd2 Bc4) 50. Bc8 {[%emt 0:01:00] Re2 is the strong threat.} Bxc8 $2 {[%emt 0:00:00]} (50... Be5 51. Bxe6 (51. Re2 Bxc8 52. Rxe5+ Kd6 $18) 51... Kxe6) 51. Rxc8 {[%emt 0:00:00] KR-KB} f4 {[%emt 0:00:00][%cal Bf5f4,Bf4f3][%mdl 32]} 52. Rc5 a4 {[%emt 0:01:30]} 53. Kb1 {[%emt 0:01:30] Strongly threatening Rf5.} Ke6 {[%emt 0:00:00] Prevents Rf5.} 54. Kc2 $2 {[%emt 0:00:00]} (54. Rc4 Ke5 55. Kc2 (55. Rxa4 f3 $16)) 54... f3 {[%emt 0:00:00] ( -> ...f2)} 55. Rh5 {[%emt 0:00:00]} f2 {[%emt 0:00:00]} 56. Rh1 {[%emt 0:00:00]} Kd5 {[%emt 0:02:00]} 57. Rf1 {[%emt 0:00:15]} Bd4 {[%emt 0:00:30]} 58. Kd3 {[%emt 0:02:15]} Bxb2 {[%emt 0:00:00]} 59. Rxf2 {[%emt 0:00:30]} a3 {[%emt 0:00:00]} 60. Rf5+ {[%emt 0:00:30]} Kc6 {[%emt 0:01:30]} 61. Kc4 {[%emt 0:00:00] Hoping for Rd5.} Ba1 $2 {[%emt 0:00:00]} (61... Kd6 62. Rd5+ Ke6) 62. Ra5 {[%emt 0:00:00]} Bb2 {[%emt 0:00:00]} 63. Ra6+ $2 {[%emt 0:00:00]} (63. Rd5 Bf6 64. Rd3) 63... Kb7 {[%emt 0:00:00]} 64. Kb5 {White threatens Rd6 and mate.} Bc1 $2 {[%emt 0:02:00]} (64... Kc7 $18 65. Kc5 Kd7) 65. Rb6+ {[%emt 0:02:30]} Ka7 {[%emt 0:00:00]} 66. Kc6 {[%emt 0:00:00]} Bf4 {[%emt 0:00:00]} 67. Rb7+ {[%emt 0:00:00]} Ka8 {[%emt 0:00:00]} 68. Kb6 {[%emt 0:00:00]} Be3+ {[%emt 0:00:00]} 69. Ka6 {[%emt 0:00:00]} Bf4 {[%emt 0:00:00]} 70. Rb3 {[%emt 0:00:00]} Bd6 {[%emt 0:00:00]} 71. Rd3 {[%emt 0:00:00]} Bb8 $2 {[%emt 0:00:00]} (71... Be7 $18 72. Kb5 Kb8) 72. Rxa3 {[%emt 0:00:00]} Ba7 {[%emt 0:00:00]} 73. Rb3 {[%emt 0:00:00]} Bb8 {[%emt 0:00:00]} 74. a4 {[%emt 0:00:00]} Ba7 {[%emt 0:00:00]} 75. a5 {[%emt 0:00:00]} Bb8 {[%emt 0:00:00]} 76. Rb7 {[%emt 0:00:00]} Bd6 {[%emt 0:00:00]} 77. Rd7 {[%emt 0:00:00]} Bf4 {[%emt 0:00:00]} 78. Rf7 {[%emt 0:00:31]} Be5 {[%emt 0:00:00]} 79. Rf8+ {[%emt 0:00:21]} Bb8 {[%emt 0:00:00]} 80. Kb5 {[%emt 0:00:05]} Kb7 {[%emt 0:08:00]} 81. Rf7+ {[%emt 0:01:10]} Ka8 {[%emt 0:00:00]} 82. Kb6 {[%emt 0:00:29]} Be5 {[%emt 0:00:00]} 83. Ra7+ {[%emt 0:00:15]} Kb8 {[%emt 0:00:00]} 84. Rd7 {[%emt 0:00:10][%cal Rd7d8] Prevents Bd4+. White mates.} Bf6 {[%emt 0:00:00]} 85. a6 {[%emt 0:00:12][%cal Ba5a6,Ba6a7][%mdl 32]} Ka8 {[%emt 0:00:00]} 86. a7 {[%emt 0:00:21]} Bd4+ {[%emt 0:00:00]} 87. Ka6 {[%emt 0:00:09][%cal Rd7d8]} Bf6 {[%emt 0:00:00]} 88. Rc7 {[%emt 0:00:12] Weighted Error Value: White=0.40/Black=0.39} 1-0

[Event "Charlotte Summer IM D 2022"]
[Site "Charlotte"]
[Date "2022.07.25"]
[Round "2.2"]
[White "Oberoi, Shelev"]
[Black "Levine, Joseph"]
[Result "1-0"]
[ECO "C14"]
[WhiteElo "2259"]
[BlackElo "2294"]
[Annotator "TA"]
[PlyCount "57"]
[EventDate "2022.07.24"]
[EventType "tourn"]
[EventCountry "USA"]
[SourceTitle "playchess.com"]
[Source "ChessBase"]
[SourceQuality "1"]
[TimeControl "5400+30"]

{[%evp 13,57,0,0,0,21,13,0,8,20,12,115,117,112,127,139,84,93,107,142,165,220,158,231,197,193,106,529,374,559,550,557,506,548,561,718,703,1029,1020,929,1026,990,963,2762,2024,2564,2119]} 1. e4 {[%emt 0:00:02][%cal Be2e4,Be4e5][%mdl 32]} e6 {[%emt 0:00:02]} 2. d4 {[%emt 0:00:12]} d5 {[%emt 0:00:01]} 3. Nc3 {[%emt 0:00:18]} Nf6 {[%emt 0:00:02]} 4. Bg5 {[%emt 0:00:18]} Be7 {[%emt 1:32:25]} 5. e5 {[%emt 0:00:25]} Nfd7 {[%emt 0:00:30]} 6. h4 {[%emt 0:00:17]} h6 {[%emt 0:00:00]} 7. Be3 {[%emt 0:00:11]} c5 {[%emt 0:00:00]} 8. Qg4 {[%emt 0:00:25] C14: French: Classical System: 4 Bg5 Be7 main line.} g6 {[%emt 0:00:00] The main line 8...g6 scores better than 8...Kf8.} 9. dxc5 {[%emt 0:01:04]} Nxe5 {[%emt 0:00:00]} 10. Qg3 {[%emt 0:00:14] The position is equal.} Nbc6 {[%emt 0:02:30]} 11. O-O-O {[%emt 0:02:26]} Qa5 {[%emt 0:00:00]} (11... Nd7 $11 {remains equal.}) 12. Bd4 $16 {[%emt 0:16:02] [#]} f6 $146 {[%emt 0:00:00]} ({Predecessor:} 12... Bf6 13. Bb5 Nd7 14. Bxf6 Nxf6 15. Qe5 Ke7 16. Qd6+ Ke8 17. Bxc6+ bxc6 18. Qxc6+ Kd8 19. Qxa8 Kc7 20. a4 Qxc5 21. Nb5+ {1-0 (21) Bykovtsev,A (2026)-Regam,J (1945) Tulsa 2015}) 13. Bxe5 {[%emt 0:07:54]} Nxe5 {[%emt 0:00:00]} 14. f4 {[%emt 0:00:18]} ({White should play} 14. Nf3) 14... Nf7 {[%emt 0:00:00]} 15. Qxg6 {[%emt 0:05:31] [#] Strongly threatening Rh3.} Qxc5 {[%emt 0:00:00]} 16. Rh3 $36 {[%emt 0:04:31][%cal Bh1h3,Bh3d3,Bd3d5][%mdl 2080] aiming for Bb5+. White has strong initiative. 0x0.0013b8fa2d1ddp-1022s more active pieces.} a6 {[%emt 0:00:00] Prevents Bb5+.} (16... Bd7 $142) 17. Be2 {[%emt 0:15:58][%cal Bf1e2,Be2g4,Bg4f3][%mdl 32] And now Bh5 would win.} Rf8 {[%emt 0:00:00]} (17... d4 $16) 18. Rhd3 {[%emt 0:08:20][%cal Of4f5] Hoping for f5!} Bd7 {[%emt 0:00:00] [#]} 19. f5 {[%emt 0:09:11]} (19. Ne4 $3 $18 {[%mdl 512]} Qb4 20. Nxf6+ Bxf6 21. Qxf6) 19... Rc8 {[%emt 0:00:00][%mdl 8192] Loses the game.} (19... O-O-O $16 {is a better chance.}) 20. Bg4 {[%emt 0:05:58]} e5 {[%emt 0:00:00]} (20... Kd8 $142) 21. Rxd5 $18 {[%emt 0:04:39] White is clearly winning.} Qe3+ {[%emt 0:00:00]} 22. Kb1 {[%emt 0:03:19]} Rxc3 {[%emt 0:00:00]} 23. Rxd7 {[%emt 0:03:46]} Rc8 {[%emt 0:00:00]} 24. Ne2 {[%emt 0:02:14][%cal Bg1e2,Be2c3,Bc3e4,Be4d6][%mdl 32]} ({Don't blunder} 24. Ka1 $2 Rxc2 25. Ne2 Qb6 26. Rxe7+ (26. b3 {leads to mate.} Qa5 27. a4 Qb4) 26... Kxe7 $19) 24... Qb6 {[%emt 0:04:45]} 25. Bf3 {[%emt 0:03:53]} Rd8 {[%emt 0:02:03]} 26. Rxd8+ {[%emt 0:00:17]} Bxd8 {[%emt 0:00:01]} 27. Nc3 {[%emt 0:00:38]} Qf2 {[%emt 0:00:37]} 28. Ne4 {[%emt 0:01:27]} Qb6 {[%emt 0:00:42]} 29. Nd6+ {[%emt 0:00:19] Weighted Error Value: White=0.22 (precise) /Black=0.74} 1-0

[Event "Charlotte Summer IM D 2022"]
[Site "Charlotte"]
[Date "2022.07.25"]
[Round "2.3"]
[White "Leyva Rivera, Yunier"]
[Black "Bisiriyu-Salam, Oluwaseun"]
[Result "1-0"]
[ECO "D36"]
[WhiteElo "2379"]
[BlackElo "1992"]
[Annotator "TA"]
[PlyCount "57"]
[EventDate "2022.07.24"]
[EventType "tourn"]
[EventCountry "USA"]
[SourceTitle "playchess.com"]
[Source "ChessBase"]
[SourceQuality "1"]
[TimeControl "5400+30"]

{[%evp 24,57,122,137,154,147,158,153,179,185,190,191,196,194,210,201,229,187,255,267,241,248,251,252,232,215,217,221,216,209,286,278,371,368,29989,29990]} 1. d4 {[%emt 0:00:24]} Nf6 {[%emt 0:12:17]} 2. Nf3 {[%emt 0:01:22]} d5 {[%emt 0:00:16]} 3. c4 {[%emt 0:00:12]} e6 {[%emt 0:00:11]} 4. Nc3 {[%emt 0:00:40]} Be7 {[%emt 0:00:12]} 5. cxd5 {[%emt 0:04:57]} exd5 {[%emt 0:00:12]} 6. Bg5 {[%emt 0:00:12]} O-O {[%emt 0:01:01]} 7. e3 {[%emt 0:00:10]} Nbd7 {[%emt 0:00:59]} 8. Bd3 {[%emt 0:00:52]} c6 {[%emt 0:03:47]} 9. Qc2 {[%emt 0:04:50]} Re8 {[%emt 0:01:34]} 10. O-O {[%emt 0:01:01]} Ne4 {[%emt 0:01:31]} 11. Bxe4 {[%emt 0:04:51]} Bxg5 {[%emt 0:03:18]} 12. Bxh7+ {[%emt 0:00:42]} Kh8 {[%emt 0:00:07]} 13. Bd3 {[%emt 0:03:36] White is more active.} Bh6 {[%emt 0:00:17] D36: Queen's Gambit Declined: Exchange Variation: Main line (5 Bg5 c6 6 Qc2).} 14. b4 {[%emt 0:01:13] [#]} a6 $146 {[%emt 0:02:44] Prevents b5.} ({Predecessor:} 14... Nf6 15. Ne5 Rxe5 16. dxe5 Ng4 17. Bf5 Qh4 18. Bxg4 Bxg4 19. f4 Re8 20. Qf2 Qe7 21. a3 {1-0 (37) Stepanov,M (1549)-Wachsmann,E (1740) Neustadt an der Weinstrasse 2019}) 15. a4 {[%emt 0:00:51]} g6 {[%emt 0:00:13] White is clearly better.} 16. b5 {[%emt 0:02:16]} axb5 {[%emt 0:00:20]} 17. axb5 {[%emt 0:00:05]} Rxa1 {[%emt 0:00:03]} 18. Rxa1 {[%emt 0:00:07]} Qf6 {[%emt 0:00:47]} 19. bxc6 {[%emt 0:00:07]} bxc6 {[%emt 0:00:02]} 20. Ba6 {[%emt 0:12:25]} Bf8 {[%emt 0:01:41]} (20... Qd6 {was called for.} 21. h3 Kg8 22. Bxc8 Rxc8) 21. Bxc8 {[%emt 0:01:38]} Rxc8 {[%emt 0:00:04] [#]} 22. Nxd5 $1 {[%emt 0:00:12][%mdl 512]} Qd8 {[%emt 0:01:39]} 23. Nf4 {[%emt 0:03:39]} c5 {[%emt 0:07:49]} 24. dxc5 {[%emt 0:02:15]} Rxc5 {[%emt 0:00:11]} 25. Qd3 {[%emt 0:05:33]} Qf6 {[%emt 0:01:29]} 26. Rd1 {[%emt 0:00:12]} Nb6 {[%emt 0:01:01]} 27. h4 {[%emt 0:01:17] And now Ng5 would win.} Kg7 {[%emt 0:04:21]} 28. Ng5 {[%emt 0:02:04][%cal Of4h5] White wants to mate with Nh5+!} Nc4 $2 {[%emt 0:56:24] [#]} (28... Qf5 $18 29. Rb1 Rc6 30. Qd4+ Qf6) 29. Nh5+ $1 {[%emt 0:00:30][%mdl 512] White took control after the opening.  Weighted Error Value: White=0.05 (flawless) /Black=0.72} 1-0